bitfinex-derivatives/quotes_BTCF0:USTF0_20250406
["timestamp","ask_amount","ask_price","bid_price","bid_amount"]
[1743977005946,0.1274048,78536.0,78518.0,0.37988807]
[1743977006242,0.1274048,78536.0,78535.0,0.3608]
[1743977006440,0.00088,78536.0,78535.0,0.00088]
[1743977007037,0.00088,78536.0,78535.0,0.12823852]
[1743977007546,0.001,78550.0,78535.0,0.28761113]
[1743977007847,0.1273853,78548.0,78540.0,0.3608]
[1743977008044,0.00108,78548.0,78541.0,0.01862238]
[1743977008240,0.0636933,78547.0,78542.0,0.01862238]
[1743977008430,0.1273905,78545.0,78542.0,0.13340914]
[1743977008736,0.00108,78545.0,78542.0,0.13340914]
[1743977008938,0.1273926,78543.0,78542.0,0.13340914]
[1743977009143,0.4888326,78543.0,78542.0,0.13232914]
[1743977009348,0.1274169,78528.0,78527.0,1.30987836]
[1743977009644,0.1274169,78528.0,78483.0,0.00101932]
[1743977009645,0.1274575,78503.0,78502.0,5e-08]
[1743977009845,0.4889375,78503.0,78502.0,5e-08]
[1743977010140,0.1274884,78484.0,78483.0,2e-08]
[1743977010343,0.9990884,78484.0,78483.0,2e-08]
[1743977010643,0.1275274,78460.0,78459.0,3e-08]
[1743977010850,0.0637779,78443.0,78435.0,1e-08]
[1743977011046,0.3608,78460.0,78387.0,1.83166057]
[1743977011047,0.1276054,78412.0,78411.0,7e-08]
[1743977011251,0.1276298,78397.0,78396.0,9e-08]
[1743977011549,0.1276445,78388.0,78387.0,7e-08]
[1743977011741,0.1276787,78367.0,78366.0,0.1932]
[1743977012052,0.1276787,78367.0,78366.0,0.1285676]
[1743977012053,0.00014962,78367.0,78366.0,0.1285676]
[1743977012248,0.00014962,78367.0,78366.0,0.2774876]
[1743977012442,0.3608,78389.0,78366.0,0.70512]
[1743977012646,0.3608,78414.0,78388.0,0.3608]
[1743977012836,0.3608,78428.0,78394.0,0.3608]
[1743977013138,0.3608,78428.0,78401.0,0.3608]
[1743977013337,0.3608,78437.0,78407.0,0.1276126]
[1743977013539,0.1275802,78428.0,78423.0,0.3608]
[1743977013744,0.3608,78437.0,78423.0,0.36196]
[1743977013945,0.1979,78451.0,78436.0,0.3608]
[1743977014248,0.3608,78459.0,78437.0,0.3923]
[1743977014249,0.3608,78445.0,78437.0,0.3923]
[1743977014451,0.424565,78459.0,78444.0,0.3608]
[1743977014648,0.3608,78459.0,78453.0,0.3608]
[1743977014945,0.3608,78459.0,78453.0,0.00108]
[1743977015245,0.3608,78474.0,78453.0,0.27750223]
[1743977015452,0.3608,78494.0,78473.0,0.3608]
[1743977015747,0.0637412,78488.0,78477.0,0.3608]
[1743977015946,0.0637422,78487.0,78477.0,0.36188]
[1743977016162,0.1284981,78478.0,78477.0,0.36188]
[1743977016451,0.001,78478.0,78477.0,0.52156874]
[1743977016648,0.0637268,78506.0,78477.0,0.64899379]
[1743977016847,0.7216,78478.0,78468.0,0.00019125]
[1743977017148,0.0637603,78465.0,78450.0,0.1951]
[1743977017350,0.1275143,78469.0,78457.0,0.0094973]
[1743977017643,0.1275143,78469.0,78450.0,0.1951]
[1743977017644,0.3608,78475.0,78450.0,0.20461453]
[1743977017845,0.3608,78468.0,78453.0,0.3608]
[1743977018046,0.4442524,78474.0,78461.0,0.3608]
[1743977018243,0.7216,78462.0,78448.0,4e-08]
[1743977018444,0.00019113,78468.0,78435.0,9e-08]
[1743977018445,0.1275664,78436.0,78435.0,9e-08]
[1743977018639,0.1275875,78423.0,78422.0,1e-08]
[1743977018841,0.1276445,78388.0,78370.0,0.80354699]
[1743977019049,0.1276836,78364.0,78349.0,0.3608]
[1743977019349,0.1276836,78364.0,78340.0,0.1828]
[1743977019350,0.1277211,78341.0,78340.0,0.1828]
[1743977019549,0.1277227,78340.0,78339.0,0.0010212]
[1743977019848,0.48864317,78340.0,78339.0,0.0010212]
[1743977020041,0.36156047,78340.0,78339.0,0.0010212]
[1743977020244,0.3608,78381.0,78339.0,0.82787256]
[1743977020448,0.3608,78387.0,78358.0,0.3608]
[1743977020644,1.8316,78446.0,78358.0,0.3608]
[1743977020645,0.1276095,78410.0,78386.0,0.3608]
[1743977020956,0.00156001,78410.0,78390.0,0.44274699]
[1743977021148,0.3608,78412.0,78403.0,0.3608]
[1743977021352,0.3608,78412.0,78404.0,0.01795004]
[1743977021550,0.1276152,78406.0,78405.0,0.01795004]
[1743977021753,0.1276152,78406.0,78405.0,0.01987004]
[1743977021954,0.1923,78411.0,78405.0,0.14742106]
[1743977022152,0.1276136,78407.0,78406.0,0.01795004]
[1743977022349,0.1276136,78407.0,78406.0,0.01695004]
[1743977022855,0.1923,78411.0,78406.0,0.127538]
[1743977023055,0.3608,78428.0,78406.0,0.127538]
[1743977023056,0.14172021,78421.0,78410.0,0.3608]
[1743977023357,0.1276071,78411.0,78410.0,0.3628]
[1743977023767,0.66108838,78420.0,78411.0,0.12753719]
[1743977024061,0.14172021,78421.0,78411.0,0.00192]
[1743977024359,0.14172021,78421.0,78418.0,0.3608]
[1743977024654,0.14172021,78421.0,78420.0,0.3608]
[1743977024854,0.17815027,78430.0,78420.0,0.36272]
[1743977025158,0.1986,78451.0,78429.0,0.3608]
[1743977025159,0.1275526,78445.0,78429.0,0.3608]
[1743977025355,0.1275493,78447.0,78439.0,0.3608]
[1743977025663,0.1285385,78454.0,78439.0,0.36272]
[1743977025851,0.001,78454.0,78449.0,0.3608]
[1743977026158,0.0637513,78476.0,78450.0,0.3633]
[1743977026454,0.2540501,78477.0,78463.0,0.3608]
[1743977026656,0.1275014,78476.0,78475.0,0.3608]
[1743977026847,0.14584019,78483.0,78475.0,0.72352]
[1743977027049,0.14584019,78483.0,78475.0,0.85098728]
[1743977027555,0.1903,78496.0,78483.0,0.1274899]
[1743977027760,0.0647299,78502.0,78495.0,0.7216]
[1743977027953,0.1877,78501.0,78495.0,0.7236]
[1743977028152,0.001,78502.0,78496.0,0.12742668]
[1743977028364,0.001,78502.0,78496.0,0.13880394]
[1743977028654,0.001,78502.0,78499.0,0.127464]
[1743977028855,0.1877,78518.0,78499.0,0.002]
[1743977029050,0.04411091,78517.0,78511.0,0.0637218]
[1743977029362,0.001,78526.0,78516.0,0.3608]
[1743977029550,0.001,78526.0,78525.0,0.3608]
[1743977029751,0.001,78526.0,78525.0,0.3628]
[1743977029947,0.001,78526.0,78525.0,0.6402218]
[1743977030160,0.0636888,78553.0,78525.0,0.8736]
[1743977030358,0.1818,78557.0,78549.0,0.7216]
[1743977030655,0.1818,78557.0,78549.0,0.72352]
[1743977030861,0.1283812,78550.0,78549.0,0.72352]
[1743977031254,0.2783812,78550.0,78549.0,0.36272]
[1743977031558,0.1283812,78550.0,78549.0,0.49002825]
[1743977032060,0.1283812,78550.0,78549.0,0.36272]
[1743977032261,0.1283812,78550.0,78549.0,0.49002825]
[1743977032654,0.6369394,78546.0,78505.0,0.26704131]
[1743977032848,0.6369394,78546.0,78475.0,0.01912]
[1743977032849,0.3608,78506.0,78486.0,0.3608]
[1743977033052,0.1275095,78471.0,78470.0,0.1801]
[1743977033352,0.3608,78480.0,78470.0,0.00096]
[1743977033553,0.3608,78480.0,78470.0,0.13809288]
[1743977033752,0.7216,78471.0,78439.0,0.3608]
[1743977033968,0.00010136,78470.0,78467.0,0.00019115]
[1743977034263,0.00010136,78470.0,78460.0,0.4245632]
[1743977034450,0.00010136,78470.0,78468.0,0.1273934]
[1743977034655,0.00010136,78470.0,78469.0,0.01712094]
[1743977034850,0.00019115,78476.0,78469.0,0.01712094]
[1743977034851,0.00019115,78476.0,78470.0,0.1275104]
[1743977035053,0.1933,78493.0,78471.0,0.7392]
[1743977035264,0.00064,78489.0,78480.0,0.3608]
[1743977035463,0.5541,78508.0,78490.0,0.1274784]
[1743977035762,0.00084,78508.0,78497.0,0.3608]
[1743977035965,0.3608,78525.0,78498.0,0.01691492]
[1743977036162,0.00064,78525.0,78511.0,0.1274438]
[1743977036359,0.0646907,78550.0,78512.0,0.57711492]
[1743977036559,0.00074151,78531.0,78530.0,0.93096069]
[1743977036756,0.001,78550.0,78530.0,1.18118191]
[1743977036961,0.001,78550.0,78549.0,0.3608]
[1743977037160,0.001,78550.0,78549.0,2.33685057]
[1743977037360,0.001,78550.0,78549.0,2.6770346]
[1743977037559,0.001,78574.0,78549.0,2.6770346]
[1743977037560,0.001,78574.0,78555.0,0.1273716]
[1743977037767,0.001,78574.0,78573.0,0.3608]
[1743977037963,0.001,78574.0,78573.0,0.36172]
[1743977038166,0.001,78574.0,78573.0,0.02722719]
[1743977038464,0.001,78574.0,78573.0,0.51441544]
[1743977038665,0.001,78574.0,78573.0,0.51533893]
[1743977039069,0.1283423,78574.0,78573.0,0.14512747]
[1743977039368,0.1290623,78574.0,78573.0,0.00092]
[1743977039556,0.1290623,78574.0,78573.0,0.48806937]
[1743977039764,0.1280623,78574.0,78573.0,0.48906937]
[1743977040271,0.00072,78574.0,78573.0,0.48906937]
[1743977040473,0.3608,78582.0,78573.0,0.50594644]
[1743977040669,0.1983,78597.0,78580.0,0.3608]
[1743977040670,0.0636562,78593.0,78580.0,0.3608]
[1743977040865,0.063656,78593.0,78581.0,0.01687601]
[1743977041064,0.1273194,78589.0,78582.0,0.01687601]
[1743977041271,0.1983,78597.0,78583.0,0.01687601]
[1743977041566,0.1983,78597.0,78584.0,0.01687764]
[1743977041774,0.0636669,78580.0,78564.0,0.3608]
[1743977041969,0.1983,78579.0,78573.0,0.3608]
[1743977042272,0.001,78598.0,78581.0,0.1272475]
[1743977042475,0.001,78598.0,78589.0,0.3608]
[1743977042662,0.001,78598.0,78590.0,0.19885937]
[1743977042857,0.001,78598.0,78591.0,0.01685937]
[1743977043071,0.1273116,78593.0,78592.0,0.01685937]
[1743977043260,0.1273245,78585.0,78584.0,0.0001909]
[1743977043457,0.10949482,78594.0,78592.0,0.1272386]
[1743977043666,0.1889,78621.0,78620.0,0.1272678]
[1743977043862,0.3608,78630.0,78620.0,0.3608]
[1743977044064,0.1889,78629.0,78621.0,0.3608]
[1743977044263,0.3608,78639.0,78620.0,0.1272386]
[1743977044264,0.0636156,78643.0,78620.0,0.1272386]
[1743977044478,0.1889,78642.0,78621.0,0.92328834]
[1743977044768,0.127243,78636.0,78621.0,0.92328834]
[1743977044964,0.1889,78642.0,78621.0,0.7329]
[1743977045167,0.1858,78643.0,78626.0,0.0636289]
[1743977045464,0.00068,78643.0,78642.0,0.3608]
[1743977045676,0.00064,78643.0,78642.0,0.36144]
[1743977045867,0.0636137,78645.0,78642.0,0.48863167]
[1743977046171,0.34522282,78661.0,78642.0,0.48863167]
[1743977046470,0.0636025,78659.0,78643.0,0.388]
[1743977046767,0.00064,78659.0,78658.0,0.3608]
[1743977046984,0.3266763,78677.0,78658.0,0.36144]
[1743977047158,0.1995,78677.0,78665.0,0.3608]
[1743977047362,0.0635912,78673.0,78661.0,0.3608]
[1743977047563,0.3618,78694.0,78668.0,0.3608]
[1743977047764,0.001,78694.0,78690.0,0.3608]
[1743977048067,0.0635449,78731.0,78692.0,0.0635754]
[1743977048267,0.05848943,78718.0,78711.0,0.3608]
[1743977048468,0.05976943,78718.0,78717.0,0.3608]
[1743977048662,0.1995,78741.0,78717.0,0.36216]
[1743977048861,0.0635141,78769.0,78740.0,0.3608]
[1743977049066,0.1853,78765.0,78741.0,0.54796]
[1743977049259,0.3608,78749.0,78741.0,0.1869667]
[1743977049460,0.3608,78742.0,78722.0,0.00014371]
[1743977049767,0.3608,78742.0,78629.0,0.6362597]
[1743977049768,0.1271482,78694.0,78693.0,2e-08]
[1743977049968,0.4250142,78694.0,78676.0,0.3608]
[1743977050161,0.1853,78693.0,78686.0,0.00019061]
[1743977050364,0.1271595,78687.0,78686.0,1e-08]
[1743977050559,0.127174,78678.0,78677.0,0.12699864]
[1743977050770,0.00013295,78687.0,78677.0,0.00064]
[1743977051071,0.127174,78678.0,78677.0,0.00064]
[1743977051367,0.0001376,78678.0,78677.0,0.1278156]
[1743977051575,0.0007024,78678.0,78677.0,0.12773387]
[1743977051762,0.18907518,78699.0,78677.0,0.12773387]
[1743977051962,0.3608,78688.0,78677.0,7e-08]
[1743977052163,0.0008,78688.0,78678.0,0.12709387]
[1743977052364,0.3608,78723.0,78679.0,0.19104]
[1743977052571,0.3608,78723.0,78708.0,0.3608]
[1743977052572,0.3608,78722.0,78708.0,0.3608]
[1743977052780,0.3608,78768.0,78728.0,0.0635466]
[1743977052974,0.1803,78765.0,78755.0,0.3608]
[1743977053165,0.00973449,78782.0,78755.0,0.80354699]
[1743977053470,0.00068,78766.0,78765.0,0.3608]
[1743977053673,0.10067057,78778.0,78765.0,0.3608]
[1743977053882,0.063483,78807.0,78777.0,0.3608]
[1743977054064,0.1985,78815.0,78777.0,0.3608]
[1743977054065,0.0634888,78800.0,78777.0,0.3608]
[1743977054265,0.1269779,78800.0,78789.0,0.3608]
[1743977054465,0.0634892,78800.0,78780.0,0.44274699]
[1743977054680,0.06348,78811.0,78789.0,0.3608]
[1743977054879,0.3762,78810.0,78803.0,0.3608]
[1743977055170,0.001,78814.0,78803.0,0.3608]
[1743977055375,0.001,78814.0,78813.0,0.3608]
[1743977055573,0.001,78814.0,78813.0,0.4867562]
[1743977055763,0.001,78814.0,78813.0,0.3598]
[1743977055963,0.001,78814.0,78813.0,0.3608]
[1743977056169,0.001,78814.0,78813.0,0.48769308]
[1743977056375,0.10067057,78835.0,78813.0,0.63769308]
[1743977056580,0.1269288,78830.0,78829.0,0.3608]
[1743977056877,0.1269546,78814.0,78813.0,1e-07]
[1743977057067,0.1269546,78814.0,78770.0,0.2809126]
[1743977057068,0.1269981,78787.0,78776.0,0.3608]
[1743977057267,0.12704,78761.0,78760.0,0.3608]
[1743977057568,0.127061,78748.0,78747.0,0.00101591]
[1743977057762,0.1270997,78724.0,78723.0,0.00101621]
[1743977058167,0.1270771,78738.0,78737.0,0.04952999]
[1743977058364,0.1270997,78724.0,78723.0,0.00101621]
[1743977058667,0.3608,78762.0,78739.0,0.1270745]
[1743977058868,0.3608,78758.0,78746.0,0.3608]
[1743977059075,0.1270626,78747.0,78746.0,0.36168]
[1743977059275,0.3597844,78758.0,78746.0,0.00088]
[1743977059465,0.36066441,78758.0,78746.0,0.00088]
[1743977059670,0.1270626,78747.0,78746.0,0.00088]
[1743977060270,0.3618,78766.0,78746.0,0.12786977]
[1743977060473,0.1270626,78747.0,78746.0,0.12786977]
[1743977061580,0.0635139,78769.0,78746.0,0.48866977]
[1743977061784,0.0635187,78763.0,78753.0,0.3608]
[1743977061984,0.1270476,78757.0,78753.0,0.3608]
[1743977062174,0.1953,78762.0,78753.0,0.3608]
[1743977062575,0.1270497,78755.0,78754.0,0.12697606]
[1743977062776,0.1953,78762.0,78754.0,0.12697606]
[1743977062777,0.127044,78759.0,78754.0,0.12697606]
[1743977062975,0.12714751,78761.0,78754.0,0.12697606]
[1743977063179,0.19540671,78761.0,78754.0,0.12697606]
[1743977063371,0.3608,78789.0,78760.0,0.3608]
[1743977063575,0.5415,78789.0,78770.0,0.0635122]
[1743977063776,0.1953,78788.0,78771.0,0.3654]
[1743977063982,0.0634916,78797.0,78771.0,0.68298922]
[1743977064179,0.1831,78797.0,78771.0,0.49137203]
[1743977064374,0.1831,78797.0,78771.0,0.3644]
[1743977064686,0.1270206,78773.0,78772.0,0.31715568]
[1743977064874,0.1270303,78767.0,78766.0,0.00019048]
[1743977065179,0.12709,78730.0,78729.0,0.0095463]
[1743977065386,0.12777,78730.0,78729.0,0.00088]
[1743977065677,0.12777,78730.0,78709.0,1.827781]
[1743977065678,0.0635681,78702.0,78700.0,0.3608]
[1743977065881,0.3608,78703.0,78700.0,0.00064]
[1743977066082,0.1271578,78688.0,78687.0,8e-08]
[1743977066386,0.48899781,78688.0,78687.0,8e-08]
[1743977066580,0.48899781,78688.0,78657.0,0.3608]
[1743977066581,0.0635859,78680.0,78667.0,0.23502511]
[1743977066778,0.0635859,78680.0,78657.0,0.3608]
[1743977066779,0.1272096,78656.0,78655.0,0.21941254]
[1743977066983,0.0636125,78647.0,78642.0,0.37518645]
[1743977067283,0.4880306,78643.0,78642.0,0.37582645]
[1743977067475,0.48956702,78643.0,78642.0,0.37582645]
[1743977067676,0.12876702,78643.0,78642.0,0.37582645]
[1743977068073,0.12863061,78643.0,78642.0,0.07601889]
[1743977068271,0.0636185,78639.0,78628.0,0.3608]
[1743977068470,0.00061305,78639.0,78635.0,0.3608]
[1743977068673,0.3608,78669.0,78635.0,0.3608]
[1743977068674,0.1272419,78636.0,78635.0,0.36152]
[1743977068984,0.1272348,78641.0,78635.0,0.36152]
[1743977069180,0.00120001,78641.0,78635.0,0.36152]
[1743977069481,0.1272419,78636.0,78635.0,0.36152]
[1743977069684,0.1272419,78636.0,78635.0,0.00072]
[1743977069981,0.0636309,78624.0,78596.0,1.09781005]
[1743977070177,0.4880808,78612.0,78611.0,0.52076844]
[1743977070376,0.4895608,78612.0,78611.0,0.47393764]
[1743977070686,0.1272937,78604.0,78596.0,0.3608]
[1743977070888,0.4895337,78604.0,78595.0,0.00190907]
[1743977071085,0.1273294,78582.0,78578.0,0.3608]
[1743977071477,0.00156001,78582.0,78581.0,0.127331]
[1743977071675,0.44274699,78620.0,78581.0,0.127331]
[1743977071676,0.3608,78628.0,78581.0,0.27725641]
[1743977071881,0.1272954,78603.0,78602.0,0.3608]
[1743977072191,0.00096001,78603.0,78599.0,0.3608]
[1743977072486,0.00019086,78612.0,78588.0,0.3608]
[1743977072487,0.00019086,78612.0,78601.0,0.3608]
[1743977072692,0.127297,78602.0,78601.0,0.3608]
[1743977072894,0.00019086,78612.0,78595.0,0.00019086]
[1743977073187,0.001,78598.0,78597.0,0.3598]
[1743977073488,0.00019086,78612.0,78603.0,0.1272944]
[1743977073683,0.00019086,78612.0,78611.0,0.3598]
[1743977073885,0.1902,78634.0,78619.0,0.1272679]
[1743977074182,0.3618,78670.0,78621.0,0.3608]
[1743977074387,0.143,78668.0,78645.0,0.7216]
[1743977074586,0.36276001,78670.0,78664.0,0.3608]
[1743977074792,0.4879358,78702.0,78669.0,0.3608]
[1743977074989,0.3608,78724.0,78689.0,0.3608]
[1743977075290,0.3608,78724.0,78708.0,0.1271254]
[1743977075589,0.3608,78742.0,78723.0,0.7216]
[1743977075793,0.00096001,78742.0,78739.0,0.3608]
[1743977075983,0.0635361,78741.0,78739.0,0.1079884]
[1743977076188,0.00019058,78740.0,78739.0,0.00076]
[1743977076383,0.3608,78778.0,78739.0,0.7216]
[1743977076580,1e-08,78778.0,78777.0,0.1270142]
[1743977076784,0.05,78799.0,78777.0,0.625907]
[1743977077002,0.25370715,78796.0,78792.0,0.80354699]
[1743977077292,0.3608,78800.0,78793.0,0.01773524]
[1743977077501,0.3608,78801.0,78794.0,0.01773524]
[1743977077694,0.001,78838.0,78794.0,0.01773524]
[1743977077695,0.1269836,78796.0,78795.0,0.01772249]
[1743977077992,0.1269836,78796.0,78795.0,9e-08]
[1743977078193,0.1269836,78796.0,78759.0,0.3608]
[1743977078194,0.15064,78796.0,78775.0,0.3608]
[1743977078396,0.0635323,78746.0,78732.0,0.3608]
[1743977078694,0.1270997,78724.0,78723.0,0.00101621]
[1743977078885,0.0635514,78722.0,78706.0,0.00190639]
[1743977079086,0.00112001,78724.0,78639.0,0.280812]
[1743977079087,0.1271385,78700.0,78687.0,0.3608]
[1743977079289,0.36152,78700.0,78676.0,0.1271771]
[1743977079491,0.36162751,78700.0,78671.0,0.00190695]
[1743977079795,0.3608,78716.0,78704.0,0.0635653]
[1743977079985,0.00019009,78707.0,78706.0,0.1271288]
[1743977080298,0.48811729,78707.0,78706.0,0.00092]
[1743977080597,0.00083009,78707.0,78706.0,0.3608]
[1743977080796,0.20456,78765.0,78706.0,0.82978435]
[1743977081098,0.3608,78758.0,78728.0,0.7216]
[1743977081393,0.3608,78768.0,78756.0,0.3608]
[1743977081597,0.36148,78768.0,78757.0,0.1828]
[1743977081795,0.36148,78768.0,78757.0,0.31135541]
[1743977081986,0.0634961,78791.0,78757.0,0.31135541]
[1743977081987,0.1269832,78797.0,78767.0,0.3608]
[1743977082188,0.3608,78783.0,78780.0,0.44274699]
[1743977082398,0.0635042,78781.0,78767.0,0.3608]
[1743977082692,0.0635042,78781.0,78740.0,5e-08]
[1743977082693,0.1270723,78741.0,78740.0,5e-08]
[1743977082898,0.2779123,78741.0,78740.0,0.00084]
[1743977083096,0.1279123,78741.0,78740.0,0.00084]
[1743977083295,0.5268123,78741.0,78740.0,0.00084]
[1743977083796,0.39974,78741.0,78740.0,0.00084]
[1743977083998,0.1279123,78741.0,78740.0,0.12783944]
[1743977084196,0.1270723,78741.0,78740.0,0.12783944]
[1743977084401,0.1270723,78741.0,78740.0,0.00084]
[1743977084595,0.00084,78741.0,78740.0,0.12783944]
[1743977084895,0.3608,78765.0,78740.0,0.27783944]
[1743977085103,0.1270723,78741.0,78740.0,0.00084]
[1743977085701,0.1270723,78741.0,78720.0,0.3922]
[1743977085702,0.5108,78741.0,78731.0,0.3608]
[1743977085895,0.063543,78733.0,78732.0,0.3608]
[1743977086093,0.3608,78764.0,78732.0,0.3608]
[1743977086295,0.6348899,78800.0,78732.0,0.3608]
[1743977086296,0.0635226,78758.0,78747.0,0.3608]
[1743977086601,0.1270448,78758.0,78757.0,0.3608]
[1743977086799,0.0001905,78760.0,78757.0,0.3608]
[1743977086994,0.1270448,78758.0,78757.0,0.3608]
[1743977087399,0.0001905,78760.0,78745.0,0.0001905]
[1743977087601,0.1270997,78724.0,78723.0,0.5438]
[1743977087792,0.3608,78752.0,78690.0,0.280812]
[1743977087793,0.1271191,78712.0,78699.0,0.36181652]
[1743977087995,0.1271385,78700.0,78699.0,0.00101652]
[1743977088197,0.3608,78700.0,78690.0,0.00190679]
[1743977088395,0.3608,78740.0,78699.0,0.48777203]
[1743977088700,0.1984,78739.0,78699.0,0.3608]
[1743977088904,0.4186,78789.0,78692.0,0.00951607]
[1743977088905,0.3608,78757.0,78727.0,0.3608]
[1743977089096,0.1271175,78713.0,78712.0,0.3609905]
[1743977089293,0.1272335,78713.0,78712.0,0.3608]
[1743977089504,0.1271352,78702.0,78701.0,0.39]
[1743977089704,0.1271352,78702.0,78698.0,0.00011714]
[1743977089705,0.42449639,78702.0,78698.0,0.00011714]
[1743977090001,0.127153,78691.0,78676.0,0.3608]
[1743977090197,0.127793,78691.0,78683.0,0.3608]
[1743977090398,0.00074246,78691.0,78690.0,0.76690601]
[1743977090593,0.3608,78737.0,78690.0,0.76690601]
[1743977090594,0.3608,78717.0,78716.0,0.1271126]
[1743977090902,0.127751,78717.0,78716.0,0.3608]
[1743977091206,0.4243381,78739.0,78716.0,0.00104]
[1743977091393,0.3608,78728.0,78716.0,0.12812014]
[1743977091598,4.234e-05,78727.0,78716.0,0.12812014]
[1743977091800,4.234e-05,78727.0,78720.0,0.3608]
[1743977092018,0.3608,78763.0,78720.0,0.3608]
[1743977092019,0.3608,78763.0,78726.0,0.3608]
[1743977092202,0.1270932,78728.0,78727.0,0.188]
[1743977092393,0.4878932,78728.0,78727.0,0.00096]
[1743977092705,0.00064,78728.0,78722.0,0.3608]
[1743977093004,0.4243128,78770.0,78727.0,0.67804514]
[1743977093209,0.1270658,78745.0,78744.0,0.3608]
[1743977093392,0.1270658,78745.0,78731.0,0.01690034]
[1743977093393,0.00116,78745.0,78731.0,0.01690034]
[1743977093598,0.1270868,78732.0,78731.0,0.00084]
[1743977093798,0.1278868,78732.0,78731.0,0.00084]
[1743977094192,0.1270981,78725.0,78724.0,0.0001905]
[1743977094398,0.1278581,78725.0,78724.0,0.0008305]
[1743977094703,0.1278581,78725.0,78724.0,0.01770568]
[1743977094907,0.1278581,78725.0,78724.0,0.0008305]
[1743977095103,0.1271078,78719.0,78704.0,0.3608]
[1743977095305,0.3608,78720.0,78700.0,0.3608]
[1743977095508,0.3608,78720.0,78691.0,0.3608]
[1743977095509,0.3608,78707.0,78691.0,0.3608]
[1743977096007,0.3608,78738.0,78700.0,0.3608]
[1743977096208,0.0001905,78707.0,78700.0,0.3608]
[1743977096504,0.1862,78737.0,78700.0,0.3608]
[1743977096706,0.1862,78725.0,78712.0,0.3608]
[1743977096903,0.1271119,78717.0,78713.0,0.1857]
[1743977097104,0.0001905,78726.0,78713.0,0.1857]
[1743977097105,0.0001905,78726.0,78713.0,0.3735]
[1743977097307,0.0001905,78726.0,78725.0,0.3608]
[1743977097508,0.0001905,78726.0,78725.0,0.7216]
[1743977097710,0.3608,78764.0,78725.0,0.8716]
[1743977098005,0.1938,78765.0,78737.0,0.3608]
[1743977098208,0.0635202,78761.0,78741.0,0.3608]
[1743977098401,0.1270681,78744.0,78741.0,0.3608]
[1743977098597,0.001,78766.0,78742.0,0.32348251]
[1743977098803,0.001,78790.0,78765.0,0.3608]
[1743977099007,0.001,78790.0,78789.0,0.8485948]
[1743977099207,0.1932,78813.0,78789.0,0.3608]
[1743977099402,0.81172254,78847.0,78810.0,0.0634801]
[1743977099601,0.21868535,78822.0,78811.0,0.1965]
[1743977099802,0.32401964,78847.0,78821.0,0.7216]
[1743977099998,0.25686337,78834.0,78833.0,0.3608]
[1743977100202,0.25686337,78834.0,78833.0,0.36144]
[1743977100404,0.19075017,78840.0,78833.0,0.65667914]
[1743977100604,0.19171017,78840.0,78839.0,0.3608]
[1743977100807,0.001,78862.0,78839.0,0.36176]
[1743977101009,0.001,78862.0,78824.0,0.44274699]
[1743977101010,0.1269433,78821.0,78820.0,0.44293735]
[1743977101211,0.0008,78821.0,78786.0,0.3608]
[1743977101410,0.22428,78830.0,78775.0,0.1921]
[1743977101411,0.3608,78805.0,78775.0,0.1921]
[1743977101608,0.3924,78804.0,78775.0,0.1921]
[1743977101807,0.3608,78783.0,78781.0,0.12689308]
[1743977102016,0.1280845,78783.0,78782.0,0.1921]
[1743977102212,0.00108,78783.0,78759.0,0.00190435]
[1743977102514,0.7216,78760.0,78726.0,0.3608]
[1743977102705,0.1270852,78733.0,78732.0,0.1921]
[1743977102904,0.36208,78733.0,78732.0,0.34286]
[1743977103103,0.36208,78733.0,78732.0,0.34274]
[1743977103309,0.3608,78749.0,78747.0,0.00101591]
[1743977103614,0.1260454,78748.0,78747.0,1e-08]
[1743977103824,0.1260454,78748.0,78682.0,0.3608]
[1743977103825,0.3608,78732.0,78682.0,0.3608]
[1743977104114,0.3608,78732.0,78675.0,0.00101683]
[1743977104115,0.1271385,78700.0,78684.0,0.1925]
[1743977104311,0.36172,78700.0,78684.0,0.377]
[1743977104505,0.48896949,78700.0,78684.0,0.377]
[1743977104714,0.48896949,78700.0,78699.0,0.0153507]
[1743977104915,0.36183099,78700.0,78699.0,0.0153507]
[1743977105110,0.48896949,78700.0,78699.0,0.0153507]
[1743977105915,0.48896949,78700.0,78699.0,0.40522223]
[1743977105916,0.00103099,78700.0,78699.0,0.40522223]
[1743977106213,0.3608,78724.0,78705.0,0.063565]
[1743977106417,0.3608,78743.0,78720.0,0.3608]
[1743977106608,0.3608,78759.0,78721.0,0.21158]
[1743977106810,0.0635319,78747.0,78721.0,0.46651591]
[1743977107008,0.1270677,78744.0,78725.0,0.1270971]
[1743977107211,0.3608,78735.0,78721.0,0.50644139]
[1743977107409,0.1270932,78728.0,78727.0,0.00019049]
[1743977107613,0.4878932,78728.0,78727.0,0.00019049]
[1743977107810,0.1271385,78700.0,78695.0,0.00190644]
[1743977108018,0.1271643,78684.0,78683.0,0.00014661]
[1743977108321,0.4879643,78684.0,78683.0,1e-08]
[1743977108518,0.1271772,78676.0,78659.0,0.1869]
[1743977108712,0.4879772,78676.0,78659.0,0.5477]
[1743977108914,0.4879772,78676.0,78668.0,0.00209708]
[1743977109309,0.00014673,78676.0,78675.0,0.12810827]
[1743977109715,0.3608,78721.0,78675.0,0.82840281]
[1743977109913,0.3608,78730.0,78710.0,0.44274699]
[1743977110114,0.00068,78725.0,78714.0,0.3608]
[1743977110316,0.0635559,78717.0,78714.0,0.00064]
[1743977110513,0.1271465,78695.0,78694.0,2e-08]
[1743977110712,0.6379465,78695.0,78694.0,2e-08]
[1743977111214,0.36168,78695.0,78694.0,2e-08]
[1743977111413,0.3608,78696.0,78694.0,4e-08]
[1743977111613,0.0635785,78689.0,78675.0,9e-08]
[1743977111820,0.4879772,78676.0,78675.0,9e-08]
[1743977112215,0.3608,78771.0,78675.0,0.72375723]
[1743977112515,0.0634888,78800.0,78780.0,0.005]
[1743977112716,0.1992,78780.0,78778.0,0.3608]
[1743977112925,0.3262094,78780.0,78779.0,0.3608]
[1743977113108,0.1992,78780.0,78779.0,0.3608]
[1743977113313,0.3262094,78780.0,78779.0,0.3608]
[1743977113517,0.4762094,78780.0,78779.0,0.2879295]
[1743977113816,0.3492,78780.0,78778.0,0.3608]